Cogmind - Beta 17 @@@ ROGUE MODE // 2026.07.30 @ 17:33:17 Player: aperiodic Result: Destroyed by C-35 Carver with Carbide Saw Performance ------------- Evolutions (5) 2500 Regions Visited (14) 2800 Robots Destroyed (100) 500 Value Destroyed (3266) 3266 Prototype IDs (61) 1220 Alien Tech Used (0) 0 Bonus (564) 564 TOTAL SCORE: 10850 Bonus ------- High Alert Combat Kills 57 Follower Combat Kills 1776 Network Hubs Disabled 600 Registered with UFD 300 Met Optimus in HQ 500 A7 Reached Mainframe 300 Met R17 at Cetus 500 Friendly Fire -3469 Cogmind --------- Core Integrity 0/1000 Matter 232/300 Energy 60/100 System Corruption 16% Temperature Cool (0) Movement Core (50) Location -5/Hub_04(d) Parts ------- > --- POWER (1) -------- (None) > --- PROPULSION (6) --- (None) > --- UTILITY (8) ------ (None) > --- WEAPON (2) ------- (None) > --- INVENTORY (5) ---- Meta Core Medium Regenerative Plating A0-MCA's Component Scanner Enhanced Coil Gun CPS Tube (2) Peak State ------------ > --- POWER ------------ Compact Particle Reactor > --- PROPULSION ------- Field Propulsion Drive Field Propulsion Drive Cooled Nuclear Pulse Thruster Cooled Nuclear Pulse Thruster Cooled Nuclear Pulse Thruster Electron Diverter > --- UTILITY ---------- Advanced Cooling System Advanced Gravity Neutralizer Advanced Signal Interpreter Advanced Melee Analysis Suite Centrium Medium Armor Plating Medium Regenerative Plating Makeshift Hacking Suite Advanced System Shield > --- WEAPON ----------- Advanced Variable Charge Gun Advanced KE Penetrator > --- INVENTORY -------- Meta Core A0-MCA's Component Scanner Heavy Shock Bomb Launcher CPS Tube Katana [Rating: 120] Favorites ----------- Power Improved Fusion Compressor Engine Light Ion Engine Power Core Improved Fusion Compressor Reactor Particle Reactor Propulsion VTOL Module Treads Spiked Treads Leg Enhanced Armored Leg Wheel Wheel Hover Unit Gravmag System Flight Unit VTOL Module Utility Advanced Melee Analysis Suite Device Self-contained Transmogrifier Storage Humpback Processor Advanced Melee Analysis Suite Hackware Improved Hacking Suite Protection Enhanced Scrap Shield Weapon Subdweller Beam Cannon Energy Gun Shock Rifle Energy Cannon Subdweller Beam Cannon Ballistic Gun Subdweller Machine Gun Ballistic Cannon Light Cannon Launcher Mini Smartbomb Launcher Special Weapon CPS Tube Impact Weapon Makeshift Hammer Slashing Weapon Katana Build | -11 -10 -10 -9 -9 -6 -6 -6 -6 -5 -5 -5 -5 -5 -5 ------- Run | Yrd Mat Sub Rec Scr Fac Low Low Zio Pro Fac Ext Cet Arc Hub Slots Evolved 10 | . . . . . 8 . . . . 2 . . . . Power . | . . . . . . . . . . . . . . . Propulsion 4 | . . . . . 4 . . . . . . . . . Utility 6 | . . . . . 4 . . . . 2 . . . . Weapon . | . . . . . . . . . . . . . . . Parts Attached 116 | 8 4 24 1 8 11 4 3 1 1 9 14 13 6 9 Power 17 | 1 . 4 . 1 . . . 1 . . 5 2 1 2 Engine 7 | 1 . 4 . 1 . . . . . . 1 . . . Core 7 | . . . . . . . . 1 . . 4 . . 2 Reactor 3 | . . . . . . . . . . . . 2 1 . Propulsion 24 | 2 . 8 1 1 1 1 1 . . 5 2 . 1 1 Treads 4 | . . 3 . 1 . . . . . . . . . . Leg 1 | . . . . . 1 . . . . . . . . . Wheel 8 | 2 . 5 1 . . . . . . . . . . . Hover 1 | . . . . . . . . . . . . . 1 . Flight 10 | . . . . . . 1 1 . . 5 2 . . 1 Utility 47 | 2 1 4 . 3 10 2 1 . 1 3 4 8 4 4 Device 16 | 1 . . . 1 5 1 1 . . 2 1 2 2 . Storage 4 | 1 1 1 . . . . . . . . . 1 . . Processor 8 | . . . . 1 4 . . . 1 . . . . 2 Hackware 8 | . . . . 1 . . . . . 1 1 1 2 2 Protection 11 | . . 3 . . 1 1 . . . . 2 4 . . Artifact . | . . . . . . . . . . . . . . . Weapon 28 | 3 3 8 . 3 . 1 1 . . 1 3 3 . 2 Energy Gun 2 | . . . . . . . . . . . 1 1 . . Energy Cannon 3 | . . 3 . . . . . . . . . . . . Ballistic Gun 8 | 3 . 3 . . . . . . . . . 1 . 1 Ballistic Cannon 6 | . 3 1 . 2 . . . . . . . . . . Launcher 3 | . . . . . . 1 . . . 1 . 1 . . Special Weapon 3 | . . . . 1 . . 1 . . . 1 . . . Impact Weapon 2 | . . 1 . . . . . . . . . . . 1 Slashing Weapon 1 | . . . . . . . . . . . 1 . . . Piercing Weapon . | . . . . . . . . . . . . . . . Special Melee Weapon . | . . . . . . . . . . . . . . . Unidentified Prototypes 14 | . . . . 1 2 1 . . . 2 . 6 . 2 Corrupted Parts 3 | . . . . . . 1 . . . 1 . . . 1 System Corruption 12 | . . . . . . 1 . . . 1 . . . 10 Parts Lost 31 | . . 7 1 . 2 . . . . 8 3 . 3 7 Power 4 | . . 2 . . . . . . . 1 . . 1 . Propulsion 13 | . . 3 1 . . . . . . 4 . . 1 4 Utility 9 | . . 1 . . 1 . . . . 2 2 . . 3 Weapon 5 | . . 1 . . 1 . . . . 1 1 . 1 . Highest Loss Streak 7 | . . 2 1 . 2 . . . . 6 2 . 2 7 To Critical Strikes . | . . . . . . . . . . . . . . . Average Backups 5 | 4 11 8 29 3 4 4 3 2 4 4 4 4 4 5 Power . | . 1 . 1 . . . . . . . . . . . Propulsion . | 2 5 1 3 . . . . . . . . . . . Utility 2 | . 1 2 9 1 1 1 1 1 3 2 1 1 1 2 Weapon 1 | . 4 2 12 1 . . . . . . . 1 1 1 Tool/Special . | . . . . . . . . . . . . . . . Unused Backups 41 | . 1 18 . 16 . . . . . 3 . 1 . 2 Power 6 | . . 5 . 1 . . . . . . . . . . Propulsion 6 | . 1 5 . . . . . . . . . . . . Utility 14 | . . 3 . 7 . . . . . 3 . . . 1 Weapon 13 | . . 5 . 8 . . . . . . . . . . Tool/Special 2 | . . . . . . . . . . . . 1 . 1 Average Slot Usage (%) 86 | . 98 85 85 93 66 63 71 80 80 81 77 95 96 92 Engine 4 | . 13 13 14 1 . . . . . . 1 . . . Core 3 | . . . . 6 6 6 6 6 6 5 2 4 . 3 Reactor 2 | . . . . 5 . . . . . . . . 4 1 Treads 6 | . . 15 . 6 . . . . . . . . . . Wheel 5 | . 28 11 28 4 . . . . . . . . . . Hover 1 | . . . . 2 . . . . . . . . 3 4 Flight 13 | . . . . 11 13 17 24 26 26 23 24 35 28 26 Device 11 | . 14 6 . 14 9 14 17 13 13 16 11 5 10 9 Storage 2 | . 14 4 14 1 . . . . . . . . . . Processor 5 | . . . . 1 7 13 13 13 13 11 11 11 11 10 Hackware 1 | . . . . . 12 . . . . 4 8 11 10 14 Protection 5 | . . 5 . 6 4 4 2 6 6 4 6 15 10 5 Energy Gun 5 | . . . . 15 . . . . . . . . 4 4 Energy Cannon 6 | . . 19 14 5 . . . . . . . . . . Ballistic Cannon 1 | . 24 3 . 1 . . . . . . . . . . Impact Weapon 3 | . . 3 14 1 6 5 6 6 6 5 . . . 4 Slashing Weapon 1 | . . . . 2 . . . . . . 1 4 4 . Peak Build Rating 120 | 7 8 21 22 51 70 67 69 69 70 91 90 120 120 112 Average Rating 45 | 5 7 12 20 37 57 62 65 68 69 82 79 103 106 99 On Entrance 53 | . 7 8 20 22 42 58 63 69 67 70 65 85 120 109 Avg Prop Armor Cover (%) 7 | . . 4 . 12 . 5 4 4 . . 19 . 5 3 Naked Turns 288 | . . . . 270 . . . . . . . . . 18 Heaviest Build 216 | 13 50 216 216 216 22 32 26 26 26 34 35 40 42 43 Greatest Support 70 | 20 20 40 30 70 27 31 35 35 35 37 40 56 48 48 Greatest Overweight (x) 21 | . 2 21 10 21 . 8 8 8 1 1 1 . 13 . Average Overweight (x) 1 | . 1 2 8 2 . 1 . 2 . . . . . . Largest Inventory Capacity 35 | 8 20 35 35 35 5 5 5 5 5 5 5 5 5 5 Average Capacity 9 | 7 17 12 35 8 5 5 5 5 5 5 5 5 5 5 Most Carried 35 | 7 15 35 35 35 5 5 5 5 5 5 5 5 5 5 Average Carried 6 | 4 11 9 34 4 5 4 4 5 4 4 4 4 4 5 Final Capacity 35 | 8 20 35 35 5 5 5 5 5 5 5 5 5 5 5 Final Carried 35 | 7 15 35 35 5 5 5 5 5 5 5 5 5 5 5 Transmogrified Parts 116 | . . . . 116 . . . . . . . . . . Integrity Recovered 125 | . . . . 125 . . . . . . . . . . Class Distribution -------------------- 55% | Mutant 12% | Hauler-Mutant 7% | Subdweller-Mutant 4% | Derelict-Mutant 4% | Scavenger-Mutant Dominant Class ---------------- Mutant | -10/Materials Mutant | -10/Subcaves Hauler-Mutant | -9/Recycling Mutant | -9/Scraptown Hacker-Sprinter | -6/Factory Mutant | -6/Lower Caves Mutant | -6/Lower Caves Mutant | -6/Zion Derelict-Mutant | -5/Proximity Caves Derelict-Assassin | -5/Factory Commander-Sprinter | -5/Extension Hacker-Sprinter | -5/Cetus Scavenger-Mutant | -5/Archives Hacker-Sprinter | -5/Hub_04(d) Resources | -11 -10 -10 -9 -9 -6 -6 -6 -6 -5 -5 -5 -5 -5 -5 ----------- Run | Yrd Mat Sub Rec Scr Fac Low Low Zio Pro Fac Ext Cet Arc Hub Matter Collected 4360 | 227 267 575 10 10 300 832 928 25 10 80 559 233 240 64 Remotely . | . . . . . . . . . . . . . . . Salvage Created 4414 | 122 161 922 46 . 408 442 244 . . 387 260 301 627 494 Parts 235 | 10 8 70 4 . 5 10 3 . . 29 23 23 37 13 Haulers Intercepted 5 | . 1 . . . . . . . . 2 . . . 2 Recyclers Shooed . | . . . . . . . . . . . . . . . Parts Field Recycled . | . . . . . . . . . . . . . . . Retrieved Matter . | . . . . . . . . . . . . . . . Parts Self-Destructed 49 | . . 16 . . . 6 11 4 12 . . . . . Prevented 11 | . . . . . . 7 4 . . . . . . . Parts Restored . | . . . . . . . . . . . . . . . Kills | -11 -10 -10 -9 -9 -6 -6 -6 -6 -5 -5 -5 -5 -5 -5 ------- Run | Yrd Mat Sub Rec Scr Fac Low Low Zio Pro Fac Ext Cet Arc Hub Combat Hostiles Destroyed 56 | . 3 26 1 . 1 7 1 . . 9 4 1 3 . Melee 7 | . . . . . 1 3 . . . . 2 . 1 . Guns 5 | . . 3 . . . . . . . . . . 2 . Cannons 24 | . 3 21 . . . . . . . . . . . . AOE 13 | . . . . . . 2 . . . 9 2 . . . Classes Destroyed 18 | 2 3 2 1 . 2 2 2 . . 2 1 . 1 . Worker 6 | . . . . . 2 . . . . 1 . . . 3 Builder 2 | . . . . . . . . . . 1 1 . . . Tunneler 5 | 2 . . . . 2 . . . . 1 . . . . Hauler 5 | . 1 . . . . . . . . 2 . . . 2 Recycler 5 | 1 1 . . . 2 . . . . . . . . 1 Minesweeper 2 | . . . . . . . 2 . . . . . . . Operator 9 | . . . . . . . . . . . . . 9 . Watcher 8 | . 2 . . . . . . . . 1 . 2 . 3 Swarmer 18 | . 3 5 . . . 5 . . . 5 . . . . Cutter 3 | . . . . . . . . . . 3 . . . . Grunt 2 | . . . . . . 1 1 . . . . . . . Sentry 6 | . . . 1 . . 1 . . . . 1 . 3 . Hunter 3 | . . . . . . . . . . . 3 . . . Programmer 2 | . . . . . 1 . . . . 1 . . . . Cetus Guard 1 | . . . . . . . . . . . . 1 . . Artisan 1 | . . 1 . . . . . . . . . . . . Subdweller 21 | . . 21 . . . . . . . . . . . . Decomposer 2 | . . . . . . 2 . . . . . . . . Samaritan 3 | . . . . . . 3 . . . . . . . . Tinkerer 1 | . . . . . . . 1 . . . . . . . Thug 1 | . . . . . . . . . . . . 1 . . Best Kill Streak 6 | 2 3 3 1 . 2 4 1 . . 5 3 2 6 6 Combat Bots Only 5 | . 3 3 1 . 1 4 1 . . 5 2 1 1 . Max Kills in Single Turn 5 | 1 1 1 1 . 1 1 1 . . 5 2 1 1 3 Gunslinging . | . . . . . . . . . . . . . . . Exploded 5 | . . . . . . 1 . . . 5 1 . . . Melee 1 | . . . . . 1 1 . . . . 1 . 1 . Uniques/NPCs Destroyed 1 | . . . . . . . . . . . . 1 . . A7 (-5/Cetus) Combat | -11 -10 -10 -9 -9 -6 -6 -6 -6 -5 -5 -5 -5 -5 -5 -------- Run | Yrd Mat Sub Rec Scr Fac Low Low Zio Pro Fac Ext Cet Arc Hub Hostile Shots Fired 374 | . 7 78 4 . 15 28 9 . 2 79 23 10 59 60 Missed 146 | . 5 26 1 . 3 12 6 . 2 41 5 7 20 18 Hits 228 | . 2 52 3 . 12 16 3 . . 38 18 3 39 42 Melee 18 | . . . . . . . . . . . . . . 18 Projectile 210 | . 2 52 3 . 12 16 3 . . 38 18 3 39 24 AOE 5 | . . 3 . . . . . . . 1 . . . 1 Critical Strikes 17 | . . 1 . . . . . . . 1 . 2 . 13 Damage Taken 5670 | . 19 1201 45 . 186 248 51 . . 888 559 87 1027 1359 Core 1214 | . 9 67 . . 30 74 20 . . 187 161 . 109 557 Absorbed by Shields 114 | . . . . . . . . . . . 80 34 . . Regen/Repaired (Parts) 412 | . . . . . . . . . . . . 31 372 9 Core Remaining (%) 84 | 100 . . . 69 . . . . 85 . . . . . Volleys Fired 196 | 7 16 124 . . . 5 1 . . 7 14 5 13 4 Largest 2 | 2 2 2 . . . 1 1 . . 1 1 1 2 1 Hottest 160 | 40 60 160 . . . 39 . . . 80 100 46 115 30 Shots Fired 283 | 14 32 183 . . . 5 1 . . 7 13 6 18 4 Gun 71 | 14 . 30 . . . . . . . . 5 . 18 4 Cannon 185 | . 32 153 . . . . . . . . . . . . Launcher 25 | . . . . . . 5 . . . 7 7 6 . . Special 2 | . . . . . . . 1 . . . 1 . . . Kinetic 131 | 14 32 71 . . . . . . . . . . 10 4 Thermal 125 | . . 112 . . . . . . . . 5 . 8 . Explosive 14 | . . . . . . . . . . 7 7 . . . Electromagnetic 11 | . . . . . . 5 . . . . . 6 . . Robot Hit Streak 20 | 2 7 19 . . . 13 14 . . 19 20 . 8 2 Robot Miss Streak 3 | 3 2 3 . . . . . . . . . 1 2 . Penetration Max . | . . . . . . . . . . . . . . . Secondary Targets . | . . . . . . . . . . . . . . . Shots Hit Robots 238 | 6 20 92 2 . 14 12 9 . . 15 6 17 40 5 Core Hits 141 | 3 7 32 . . 2 9 . . . 25 10 18 20 15 Critical Kills 3 | . . 2 . . . . . . . . . . . 1 Critical Parts Destroyed 8 | . . . 1 . 1 1 4 . . . . . 1 . Critical Strikes 15 | . . 2 1 . 1 1 4 . . . . 3 2 1 Meltdown 2 | . . 2 . . . . . . . . . . . . Destroy 1 | . . . . . . . . . . . . . 1 . Smash 8 | . . . 1 . 1 1 4 . . . . . . 1 Sever 4 | . . . . . . . . . . . . 3 1 . Melee Attacks 185 | . . 8 3 . 23 26 15 14 2 31 8 17 30 8 Impact 130 | . . 8 3 . 23 26 15 14 2 31 . . . 8 Slashing 55 | . . . . . . . . . . . 8 17 30 . Piercing . | . . . . . . . . . . . . . . . Sneak Attacks 50 | . . . . . 6 5 3 . . 5 3 17 11 . Combat Hostiles 2 | . . . . . . . . . . . 2 . . . Follow-up Attacks . | . . . . . . . . . . . . . . . Damage Inflicted 12830 | 90 363 2102 58 . 999 1045 782 . . 1853 775 1741 2090 932 Guns 725 | 90 . 195 . . . . . . . . . . 411 29 Cannons 2270 | . 363 1907 . . . . . . . . . . . . Explosions 3263 | . . . . . . 202 . . . 1029 475 889 . 668 Melee 6568 | . . . 58 . 999 843 782 . . 824 300 852 1679 231 Ramming 4 | . . . . . . . . . . . . . . 4 Kinetic 1531 | 90 363 802 . . . . . . . . . . 247 29 Thermal 1497 | . . 1300 . . . . . . . 33 . . 164 . Explosive 1316 | . . . . . . . . . . 841 475 . . . Electromagnetic 1914 | . . . . . . 202 . . . 155 . 889 . 668 Impact 3737 | . . . 58 . 999 843 782 . . 824 . . . 231 Slashing 2831 | . . . . . . . . . . . 300 852 1679 . Piercing . | . . . . . . . . . . . . . . . Highest Corruption 16 | . . . . . 2 3 3 3 . 6 6 6 6 16 Average Corruption 3 | . . . . . 1 2 3 3 . 3 4 5 5 13 Corruption Purged 12 | . . . . . . . . . . . 6 . 6 . Corruption Blocked . | . . . . . . . . . . . . . . . Effects 108 | . . . . . 1 32 22 9 . 3 16 12 9 4 Message Errors 24 | . . . . . . 7 3 3 . 1 6 3 1 . Matter Fused 26 | . . . . . . 8 9 . . 1 3 3 1 1 Heat Flow Errors 15 | . . . . . . 6 2 2 . . 2 . 2 1 Energy Discharges 14 | . . . . . . 4 3 2 . . 2 . 3 . Parts Rejected 4 | . . . . . 1 . . . . 1 1 . 1 . Parts Fused 1 | . . . . . . . 1 . . . . . . . Data Loss (minor) 13 | . . . . . . 4 2 1 . . . 5 . 1 Data Loss (major) 6 | . . . . . . 2 1 1 . . 1 . 1 . Misfires 1 | . . . . . . . . . . . . 1 . . Alerts 3 | . . . . . . 1 1 . . . 1 . . . Misdirections 1 | . . . . . . . . . . . . . . 1 Overload Shots . | . . . . . . . . . . . . . . . Overflow Damage 2402 | . . . 34 . 318 629 655 . . 243 . 79 297 147 Projectiles . | . . . . . . . . . . . . . . . Explosions 201 | . . . . . . 22 . . . 56 . . . 123 Melee 2201 | . . . 34 . 318 607 655 . . 187 . 79 297 24 Knockbacks 26 | . 4 14 . . 2 . 3 . . 1 . . . 2 Impact 8 | . . . . . 2 . 3 . . 1 . . . 2 Kinetic 17 | . 3 14 . . . . . . . . . . . . Secondary 1 | . 1 . . . . . . . . . . . . . Self-Inflicted Damage 379 | . . . . . . . . . . 148 . 26 . 205 Shots 8 | . . . . . . . . . . 5 . 1 . 2 Rammed 1 | . . . . . . . . . . . . . . 1 Targets Rammed 1 | . . . . . . . . . . . . . . 1 Kicked . | . . . . . . . . . . . . . . . Crushed . | . . . . . . . . . . . . . . . Highest Temperature 251 | . . 201 . . 251 195 178 170 . 83 195 90 224 92 Average Temperature 53 | . . 49 . . 115 57 60 86 . 38 66 31 83 51 Received Heat Transfer 483 | . . 132 18 . 9 9 9 . . 66 60 . 153 27 Siege Activations . | . . . . . . . . . . . . . . . Martial Activations . | . . . . . . . . . . . . . . . Shielding Activations . | . . . . . . . . . . . . . . . Robots Disrupted . | . . . . . . . . . . . . . . . Combat Hostiles . | . . . . . . . . . . . . . . . Robots Corrupted 16 | . . . 1 . 3 4 3 . . 2 . 1 . 2 Combat Hostiles 5 | . . . 1 . . 2 1 . . . . 1 . . Parts Fried 28 | . . . 1 . 6 6 4 . . 2 1 3 . 5 Impact Corruptions 66 | . . . 1 . 15 26 16 . . 6 . . . 2 Robots Melted 2 | . . 2 . . . . . . . . . . . . Combat Hostiles 2 | . . 2 . . . . . . . . . . . . Parts Melted 5 | . . 5 . . . . . . . . . . . . Heat Transferred 2011 | . . 1776 . . . . . . . 50 . . 185 . Parts Sabotaged . | . . . . . . . . . . . . . . . Parts Stolen . | . . . . . . . . . . . . . . . Parts Stripped . | . . . . . . . . . . . . . . . Power Chain Reactions 1 | . . . . . . . . . . 1 . . . . Alert | -11 -10 -10 -9 -9 -6 -6 -6 -6 -5 -5 -5 -5 -5 -5 ------- Run | Yrd Mat Sub Rec Scr Fac Low Low Zio Pro Fac Ext Cet Arc Hub Maximum Alert Level 3 | . . . . . . . . . . 2 2 1 . 3 Low Security (%) 79 | 100 100 . 100 . 100 . . . . 51 34 3 100 84 Level 1 16 | . . . . . . . . . . 43 43 96 . . Level 2 3 | . . . . . . . . . . 4 21 . . 4 Level 3 . | . . . . . . . . . . . . . . 10 Level 4 . | . . . . . . . . . . . . . . . Level 5 . | . . . . . . . . . . . . . . . High Security . | . . . . . . . . . . . . . . . Max Security . | . . . . . . . . . . . . . . . Peak Influence 844 | 5 70 . 20 . 135 . . . . 570 556 349 79 844 Initial 300 | . . . 7 . . . . . . 300 261 237 79 . Average 88 | . 13 . . . 27 . . . . 224 274 273 1 115 Influence Increases 4938 | 15 112 140 20 . 259 255 203 . 242 992 1216 332 152 1000 Destroy 0b10 Robot/C 1440 | . 60 100 20 . 20 140 80 . 160 180 440 160 80 . Destroy 0b10 Robot/NC 230 | 15 20 . . . 30 . 15 . 10 30 10 10 45 45 Destroy Leader 174 | . 16 10 . . 10 10 10 . 10 36 62 . . 10 Allied During Kill 474 | . . . . . . . 23 . 32 . 262 151 6 . Successful Hack 122 | . . . . . 12 . . . . 24 47 7 . 32 Select Force Hacks 50 | . . . . . . . . . . . . . . 50 Disable Machine 465 | . 15 . . . 15 . . . . 105 30 . 15 285 Destroy Structure 798 | . 1 . . . 7 . . . . 122 170 4 6 488 Advance Influence 300 | . . . . . . . . . . 300 . . . . Partial Spotted 330 | . . . . . 90 . . . . 105 75 . . 60 Lose Combat Pursuer 555 | . . 30 . . 75 105 75 . 30 90 120 . . 30 Influence Decreases 4149 | 15 112 125 35 . 134 375 116 92 242 458 1325 558 351 211 Entered New Map 730 | . . . 8 . . 47 2 92 . . 273 188 120 . Time Decay 2182 | 15 112 115 27 . 114 328 94 . 202 368 362 190 114 141 Lost Part 229 | . . 10 . . 20 . . . . 80 30 . 19 70 Lost Ally 558 | . . . . . . . 20 . 40 10 210 180 98 . Purge Threat 450 | . . . . . . . . . . . 450 . . . Squads Dispatched 20 | . . . . . 3 . . . . 5 5 . . 7 Investigation 7 | . . . . . 1 . . . . . 3 . . 3 Extermination 4 | . . . . . 2 . . . . 2 . . . . Reinforcement 8 | . . . . . . . . . . 3 2 . . 3 Assault 1 | . . . . . . . . . . . . . . 1 Garrison . | . . . . . . . . . . . . . . . Intercept . | . . . . . . . . . . . . . . . Searches Triggered . | . . . . . . . . . . . . . . . Construction Impeded . | . . . . . . . . . . . . . . . Haulers Reinforced 1 | . . . . . . . . . . 1 . . . . Active Scanning Responses . | . . . . . . . . . . . . . . . Cargo Convoy Interrupts 1 | . . . . . . . . . . 1 . . . . Stealth | -11 -10 -10 -9 -9 -6 -6 -6 -6 -5 -5 -5 -5 -5 -5 --------- Run | Yrd Mat Sub Rec Scr Fac Low Low Zio Pro Fac Ext Cet Arc Hub Distress Signals 8 | . 1 . . . 1 . . . . 1 3 2 . . Communications Jammed . | . . . . . . . . . . . . . . . Distress Signals . | . . . . . . . . . . . . . . . Times Spotted 179 | . 8 30 1 . 7 8 10 . 9 40 28 8 11 19 Peak Tracking Total 19 | . 4 4 1 . 6 3 4 . 5 19 6 5 2 15 Tactical Retreats 23 | . . 2 . . 2 3 5 . 1 4 4 . . 2 Traps | -11 -10 -10 -9 -9 -6 -6 -6 -6 -5 -5 -5 -5 -5 -5 ------- Run | Yrd Mat Sub Rec Scr Fac Low Low Zio Pro Fac Ext Cet Arc Hub Traps Triggered 8 | . 3 3 . . . . . . . . 2 . . . Indirectly . | . . . . . . . . . . . . . . . Trap Hack Attempts . | . . . . . . . . . . . . . . . Triggered . | . . . . . . . . . . . . . . . Disarmed . | . . . . . . . . . . . . . . . Reprogrammed . | . . . . . . . . . . . . . . . Reused 2 | . . 1 . . . . . . 1 . . . . . Traps Extracted . | . . . . . . . . . . . . . . . Installed 2 | . . 1 . . . . . . 1 . . . . . Triggered 1 | . . . . . . . . . 1 . . . . . Most Traps Carried 3 | . . 1 . . . . 3 3 3 . . . . . Machines | -11 -10 -10 -9 -9 -6 -6 -6 -6 -5 -5 -5 -5 -5 -5 ---------- Run | Yrd Mat Sub Rec Scr Fac Low Low Zio Pro Fac Ext Cet Arc Hub Machines Disabled 33 | . 1 1 . . 1 . 1 . . 7 2 . 1 19 Max in Single Turn 12 | . 1 1 . . 1 . 1 . . 6 . . 1 12 Garrison Access 2 | . . . . . 1 . . . . . . . . 1 Network Hub 3 | . . . . . . . . . . . . . . 3 Machines Repaired . | . . . . . . . . . . . . . . . Machines Dismantled . | . . . . . . . . . . . . . . . Machines Sabotaged 1 | . . . . . . . . . . . . . . 1 Overloaded Fab Kills . | . . . . . . . . . . . . . . . Hacking | -11 -10 -10 -9 -9 -6 -6 -6 -6 -5 -5 -5 -5 -5 -5 --------- Run | Yrd Mat Sub Rec Scr Fac Low Low Zio Pro Fac Ext Cet Arc Hub Machines Accessed 46 | . . 2 . 2 4 . 2 . . 8 18 1 . 9 Terminals 34 | . . . . . 2 . . . . 7 16 1 . 8 Fabricators 1 | . . . . . 1 . . . . . . . . . Repair Stations . | . . . . . . . . . . . . . . . Recycling Units 2 | . . . . . . . . . . . 2 . . . Scanalyzers 1 | . . . . . . . . . . 1 . . . . Garrison Access 2 | . . . . . 1 . . . . . . . . 1 Total Hacks 91 | . . 5 . 3 9 . 8 . . 17 32 1 . 16 Successful 58 | . . 5 . 3 2 . 8 . . 10 17 1 . 12 Failed 33 | . . . . . 7 . . . . 7 15 . . 4 Catastrophic 8 | . . . . . 3 . . . . 1 4 . . . Database Lockouts . | . . . . . . . . . . . . . . . Manual 31 | . . . . . . . . . . 9 11 . . 11 Terminals 65 | . . . . . 4 . . . . 15 30 1 . 15 Fabricators 3 | . . . . . 3 . . . . . . . . . Repair Stations . | . . . . . . . . . . . . . . . Recycling Units 2 | . . . . . . . . . . . 2 . . . Scanalyzers 2 | . . . . . . . . . . 2 . . . . Garrison Access 3 | . . . . . 2 . . . . . . . . 1 Terminal Hacks 39 | . . 5 . 3 1 . 8 . . 4 14 1 . 3 Record 13 | . . 4 . 2 . . 7 . . . . . . . Part Schematic 1 | . . . . . . . . . . . . . . 1 Robot Analysis 2 | . . . . . . . . . . . 1 . . 1 Open Door 13 | . . . . . . . 1 . . 1 10 1 . . Branch Access Points 1 | . . . . . . . . . . 1 . . . . Terminal Index 1 | . . . . . . . . . . 1 . . . . Unreport Threat 3 | . . . . . . . . . . . 3 . . . Hauler Manifests 2 | . . . . . 1 . . . . 1 . . . . Zone Layout 1 | . . . . . . . . . . . . . . 1 Proto ID Catalog 2 | . . 1 . 1 . . . . . . . . . . Fabricator Hacks . | . . . . . . . . . . . . . . . Repair Station Hacks . | . . . . . . . . . . . . . . . Recycling Unit Hacks . | . . . . . . . . . . . . . . . Scanalyzer 1 | . . . . . . . . . . 1 . . . . Retrieve Study 1 | . . . . . . . . . . 1 . . . . Garrison Access Hacks 2 | . . . . . 1 . . . . . . . . 1 Seal Access 2 | . . . . . 1 . . . . . . . . 1 Unauthorized Hacks 16 | . . . . . . . . . . 5 3 . . 8 Terminals 14 | . . . . . . . . . . 5 1 . . 8 Track 2 | . . . . . . . . . . . . . . 2 Assimilate 3 | . . . . . . . . . . 1 1 . . 1 Botnet 3 | . . . . . . . . . . 1 . . . 2 Skim 3 | . . . . . . . . . . 3 . . . . Sabotage 3 | . . . . . . . . . . . . . . 3 Fabricators . | . . . . . . . . . . . . . . . Repair Stations . | . . . . . . . . . . . . . . . Recycling Units 2 | . . . . . . . . . . . 2 . . . Fedlink 1 | . . . . . . . . . . . 1 . . . Scrapoids 1 | . . . . . . . . . . . 1 . . . Scanalyzers . | . . . . . . . . . . . . . . . Garrison Access . | . . . . . . . . . . . . . . . Data Cores Recovered . | . . . . . . . . . . . . . . . Used . | . . . . . . . . . . . . . . . Hacking Detections 28 | . . . . . 4 . . . . 6 10 . . 8 Full Trace Events 2 | . . . . . 1 . . . . . 1 . . . Feedback Events . | . . . . . . . . . . . . . . . Feedback Blocked . | . . . . . . . . . . . . . . . Robot Schematics Acquired 3 | . . . . . . . . 3 . . . . . . Robots Built . | . . . . . . . . . . . . . . . Authchips . | . . . . . . . . . . . . . . . Time . | . . . . . . . . . . . . . . . Total Robot Build Rating . | . . . . . . . . . . . . . . . Part Schematics Acquired 16 | . . . . . . . . 15 . . . . . 1 Parts Built . | . . . . . . . . . . . . . . . Authchips . | . . . . . . . . . . . . . . . Time . | . . . . . . . . . . . . . . . Total Part Build Rating . | . . . . . . . . . . . . . . . Part Studies Acquired 1 | . . . . . . . . . . 1 . . . . Parts Repaired . | . . . . . . . . . . . . . . . Time . | . . . . . . . . . . . . . . . Parts Recycled . | . . . . . . . . . . . . . . . Recycled Matter . | . . . . . . . . . . . . . . . Retrieved Matter . | . . . . . . . . . . . . . . . Retrieved Components . | . . . . . . . . . . . . . . . Parts Scanalyzed . | . . . . . . . . . . . . . . . Part Schematics Acquired . | . . . . . . . . . . . . . . . Parts Damaged . | . . . . . . . . . . . . . . . Bothacking | -11 -10 -10 -9 -9 -6 -6 -6 -6 -5 -5 -5 -5 -5 -5 ------------ Run | Yrd Mat Sub Rec Scr Fac Low Low Zio Pro Fac Ext Cet Arc Hub Used RIF Installer . | . . . . . . . . . . . . . . . Robots Hacked . | . . . . . . . . . . . . . . . Non-combat . | . . . . . . . . . . . . . . . Combat . | . . . . . . . . . . . . . . . Robot Hacks Applied . | . . . . . . . . . . . . . . . Relay Couplers Released . | . . . . . . . . . . . . . . . Fabnet Peak Effective % . | . . . . . . . . . . . . . . . Robots Rewired 11 | . . . . . . . . . . . 11 . . . Allies Hacked 1 | . . . . . . . . . . . 1 . . . Hacks Repelled . | . . . . . . . . . . . . . . . Allies | -11 -10 -10 -9 -9 -6 -6 -6 -6 -5 -5 -5 -5 -5 -5 -------- Run | Yrd Mat Sub Rec Scr Fac Low Low Zio Pro Fac Ext Cet Arc Hub Total Allies 38 | . . . . . . . 5 . . 1 31 . . 1 Largest Group 18 | . . . . . . . 5 2 2 1 18 18 5 1 Highest-Rated Group 603 | . . . . . . . 238 97 97 10 603 603 106 26 Highest-Rated Ally 159 | . . . . . . . 50 50 50 10 159 159 26 26 Initial UFD Resources 33 | . . . . . 22 22 22 22 26 26 26 33 33 33 Total Orders 10 | . . . . . . . . . . . 9 . . 1 STAY 5 | . . . . . . . . . . . 4 . . 1 ROAM 1 | . . . . . . . . . . . 1 . . . FOLLOW 4 | . . . . . . . . . . . 4 . . . Ally Attacks 282 | . . . . . . . 18 . 67 . 128 59 10 . Total Damage 5574 | . . . . . . . 352 . 843 . 2971 1162 246 . Kills 43 | . . . . . . . 3 . 10 . 20 9 1 . Allies Corrupted . | . . . . . . . . . . . . . . . Allies Melted . | . . . . . . . . . . . . . . . Intel | -11 -10 -10 -9 -9 -6 -6 -6 -6 -5 -5 -5 -5 -5 -5 ------- Run | Yrd Mat Sub Rec Scr Fac Low Low Zio Pro Fac Ext Cet Arc Hub Active Infowar (turns) 14615 | 50 492 3279 . 2047 314 2315 1532 2418 867 839 462 . . . Optics 142 | . . . . . 139 3 . . . . . . . . Sensors 9605 | . . . . 1164 11 2315 1532 2418 867 836 462 . . . Traps 923 | . . . . . 175 . . . . 748 . . . . Seismic 3821 | 50 492 3279 . . . . . . . . . . . . Triangulation 627 | . . . . 627 . . . . . . . . . . Jamming 256 | . . . . 256 . . . . . . . . . . Robot Analysis Total 2 | . . . . . . . . . . . 1 . . 1 Derelict Logs Recovered 11 | . . 1 . 5 . 1 2 1 1 . . . . . Drone Launches . | . . . . . . . . . . . . . . . Drone Recoveries . | . . . . . . . . . . . . . . . Exploration | -11 -10 -10 -9 -9 -6 -6 -6 -6 -5 -5 -5 -5 -5 -5 ------------- Run | Yrd Mat Sub Rec Scr Fac Low Low Zio Pro Fac Ext Cet Arc Hub Turns Passed 32719 | 93 492 7551 997 11407 365 2343 1532 2418 867 842 822 394 2252 344 Spaces Moved 22536 | 61 376 4123 485 7190 840 1408 1225 1549 1178 1279 1084 391 391 956 Core 2125 | 1 . . . 1246 . 295 138 297 . . 58 . 57 33 Treads 2992 | . . 1960 . 1032 . . . . . . . . . . Legs . | . . . . . . . . . . . . . . . Wheels 3683 | 60 376 2163 485 599 . . . . . . . . . . Hover 542 | . . . . 542 . . . . . . . . . . Flight 13194 | . . . . 3771 840 1113 1087 1252 1178 1279 1026 391 334 923 Fastest Speed 20 | 50 80 80 179 32 32 29 26 26 26 20 23 23 23 27 Average Speed 119 | 79 103 159 203 157 32 140 69 151 60 47 31 23 51 27 Slowest Speed 700 | 80 110 395 230 650 32 450 450 450 98 99 100 23 700 50 Overloaded Moves . | . . . . . . . . . . . . . . . Propulsion Burnouts . | . . . . . . . . . . . . . . . Robots Hopped 41 | . . . . . 6 . . . . 13 20 . . 2 Potential Cave-ins 12 | . . 4 . . . . . . . . 8 . . . Cave-ins Triggered 1 | . . . . . . . . . . . 1 . . . Exploration Rate (%) 66 | 5 49 95 73 88 25 92 80 80 91 30 62 68 94 62 Regions Visited 14 Branch Regions 11 Pre-discovered Areas 7 | . . 1 . 1 . . 1 4 . . . . . . Known Exits Taken 10 | . . 1 . . 1 1 1 1 1 1 1 1 1 . Unknown Exits Taken 4 | 1 1 . 1 1 . . . . . . . . . . Scrap Searched 31 | . . 16 . 3 . 3 2 4 3 . . . . . Spaces Dug 51 | . . 9 . . 7 7 1 . 2 18 5 . . 2 Terrain Destroyed 573 | . . 22 . . 7 7 1 . 2 69 128 . 3 334 Melee 40 | . . . . . 7 7 1 . 2 18 3 . . 2 Projectile 34 | . . 22 . . . . . . . . 5 . 3 4 AOE 499 | . . . . . . . . . . 51 120 . . 328 Terrain Rammed . | . . . . . . . . . . . . . . . Walls Destroyed . | . . . . . . . . . . . . . . . Machines Disabled . | . . . . . . . . . . . . . . . Actions | -11 -10 -10 -9 -9 -6 -6 -6 -6 -5 -5 -5 -5 -5 -5 --------- Run | Yrd Mat Sub Rec Scr Fac Low Low Zio Pro Fac Ext Cet Arc Hub Total 27671 | 87 444 4913 491 7252 903 1741 1886 1598 1334 1454 1518 666 2375 1009 Wait 4317 | 5 30 515 . 1 30 288 639 34 145 129 348 225 1909 19 Move 22448 | 60 375 4122 484 7189 828 1407 1224 1548 1177 1253 1049 390 390 952 Hop 32 | . . . . . 5 . . . . 12 13 . . 2 Pick Up 137 | 7 10 64 2 37 . 1 3 . 4 5 1 1 1 1 Fast Attach 108 | 7 7 12 . 10 11 6 1 1 . 7 13 9 15 9 Attach 18 | . 1 5 1 1 . 1 2 . . 2 2 2 1 . Detach 5 | . . 2 . . . . . . . . 1 2 . . Swap 38 | 1 1 16 . . 1 . 1 . 1 2 1 4 4 6 Drop 112 | . 4 35 1 14 5 7 . 1 4 6 5 11 12 7 Fire 196 | 7 16 124 . . . 5 1 . . 7 14 5 13 4 Melee 185 | . . 8 3 . 23 26 15 14 2 31 8 17 30 8 Ram 1 | . . . . . . . . . . . . . . 1 Kick . | . . . . . . . . . . . . . . . Crush . | . . . . . . . . . . . . . . . Escape Stasis 7 | . . . . . . . . . . . 7 . . . Rewire 56 | . . . . . . . . . . . 56 . . . Trap 2 | . . 1 . . . . . . 1 . . . . . Miscellaneous 9 | . . 9 . . . . . . . . . . . . Route ------- -11/Scrapyard -10/Materials (discovered 2 exits: [*Mat] / *Sub) -10/Subcaves (discovered 3 exits: [*Mat x2] / *Rec) -9/Recycling (discovered 2 exits: [*Fac] / *Scr) -9/Scraptown (discovered 2 exits: *Fac x2) -6/Factory (discovered 3 exits: Fac / *Low x2) -6/Lower Caves -6/Lower Caves (discovered 2 exits: *Fac / *Zio) -6/Zion -5/Proximity Caves -5/Factory (discovered 4 exits: *Upp x2 / *Ext x2) -5/Extension (discovered 2 exits: [*Fac] / *Cet) -5/Cetus (discovered 2 exits: [*Fac] / *Arc) -5/Archives (discovered 3 exits: [*Fac] / *Hub x2) -5/Hub_04(d) (discovered 1 exit: [*Fac]) History --------- Turn | Location | Event 15 | -11/Scrapyard | Discovered new exit (range 16) 94 | -11/Scrapyard | Entered Materials 322 | -10/Materials | Build established: Mutant 500 | -10/Materials | Discovered new exit (range 15) 581 | -10/Materials | Discovered new exit (range 6) 586 | -10/Materials | Entered Subcaves 589 | -10/Subcaves | Learned location of 1 exit from Materials 635 | -10/Subcaves | Ambushed by Subdwellers from Twisted Machinery 673 | -10/Subcaves | Ambushed by Subdweller buried in earth 673 | -10/Subcaves | Ambushed by Subdweller buried in earth 1373 | -10/Subcaves | Shifting Twisted Machinery released Sub. Machine Gun 1375 | -10/Subcaves | Shifting Twisted Machinery released Barrage Gun 1404 | -10/Subcaves | Visited Clippyterm 1406 | -10/Subcaves | Identified exit to Recycling 1406 | -10/Subcaves | Learned Research security intel 1515 | -10/Subcaves | Visited 4L-MR0's lab 1636 | -10/Subcaves | Disturbed a concealed Subdweller 2511 | -10/Subcaves | A swath of the cavern ceiling suddenly collapsed 2606 | -10/Subcaves | Discovered new exit (range 6) 3740 | -10/Subcaves | Discovered new exit (range 15) 3834 | -10/Subcaves | Disturbed a concealed Subdweller 4173 | -10/Subcaves | Build established: Subdweller-Mutant 5136 | -10/Subcaves | Ambushed by Subdweller buried in earth 5144 | -10/Subcaves | Ambushed by Subdweller buried in earth 5424 | -10/Subcaves | Learned location of Zion (-6) 5424 | -10/Subcaves | Met a Zionite searching for "candidates" 5626 | -10/Subcaves | Shifting Twisted Machinery released Sub. Optics 5837 | -10/Subcaves | Shifting Twisted Machinery released Sub. Laser 6240 | -10/Subcaves | Shifting Twisted Machinery released Humpback 6787 | -10/Subcaves | Build established: Hauler-Mutant 7426 | -10/Subcaves | Found Prototype Device 7434 | -10/Subcaves | Found Meta Core 8137 | -10/Subcaves | Entered Recycling 8476 | -9/Recycling | Discovered new exit (range 5) 9089 | -9/Recycling | Scanned before Scraplab entrance 9114 | -9/Recycling | Entered Scraplab 9128 | -9/Recycling | Discovered new exit (range 3) 9134 | -9/Recycling | Entered Scraptown 9367 | -9/Scraptown | Visited UFD Registry 9367 | -9/Scraptown | Registered with UFD as "Thundertalker" 9519 | -9/Scraptown | Visited Symbiants 9551 | -9/Scraptown | Visited SPCMW 9594 | -9/Scraptown | Visited Assassins FH 9643 | -9/Scraptown | Scanned Subdweller tech in exchange for log data 9646 | -9/Scraptown | Learned location of Extension (-5) 9648 | -9/Scraptown | Learned 8 Research zone layouts 9650 | -9/Scraptown | Learned location of 1 exit from Factory 9652 | -9/Scraptown | Learned 12 Factory zone layouts 9653 | -9/Scraptown | Learned Factory garrison access intel 9700 | -9/Scraptown | Visited Cyclists 9716 | -9/Scraptown | Entered Cyclist Reading Room 9757 | -9/Scraptown | Visited The Evicted 9782 | -9/Scraptown | Visited Fellowship of the Rings 9822 | -9/Scraptown | Visited Awakened 9865 | -9/Scraptown | Visited Science Testing Area 9939 | -9/Scraptown | Visited A0-MCA Data Center 10003 | -9/Scraptown | Visited Chapter 10 10078 | -9/Scraptown | Visited Research Penetration Think Tank 10180 | -9/Scraptown | Visited Scrapoid Pod Storage 10240 | -9/Scraptown | Visited Scrapoid Research Area 10307 | -9/Scraptown | Visited Science Guys 10445 | -9/Scraptown | Visited Junk Cannon Lab 10707 | -9/Scraptown | Discovered new exit (range 11) 10792 | -9/Scraptown | Delivered Scrap Shield to a Scientist 10859 | -9/Scraptown | Identified Sfc. Transmogrifier 10880 | -9/Scraptown | Build established: Mutant 20447 | -9/Scraptown | Found Scrapoid Pod 20479 | -9/Scraptown | Given a B rating by A0-MCA 20509 | -9/Scraptown | Found A0-MCA's Component Scanner 20522 | -9/Scraptown | Met Optimus 20522 | -9/Scraptown | Accepted into 0bPrime 20538 | -9/Scraptown | Discovered new exit (range 5) 20541 | -9/Scraptown | Entered Factory 20541 | -6/Factory | Evolved 8 slots: Propulsion x4, Utility x4 20542 | -6/Factory | Identified exit to Factory 20543 | -6/Factory | Identified exit to Lower Caves 20544 | -6/Factory | Loaded intel: 4 garrison access locations 20731 | -6/Factory | Discovered exit to Lower Caves (range 5) 20767 | -6/Factory | Build established: Hacker-Sprinter 20906 | -6/Factory | Entered Lower Caves 20908 | -6/Lower Caves | UFD Scientist delivered a prototype 20909 | -6/Lower Caves | Found Prototype Protection 20909 | -6/Lower Caves | Identified Enh. Scrap Shield 20915 | -6/Lower Caves | Encountered a Warlord checkpoint 21023 | -6/Lower Caves | Identified exit to Lower Caves 21177 | -6/Lower Caves | Build established: Mutant 22180 | -6/Lower Caves | Attracted the attention of an 0b10 checkpoint 23249 | -6/Lower Caves | Entered another Lower Caves area 23249 | -6/Lower Caves | Discovered exit to Factory (range 12) 23285 | -6/Lower Caves | Learned Factory terminal intel 23287 | -6/Lower Caves | Entered an active Warlord outpost 23288 | -6/Lower Caves | Learned Extension stockpile data 23288 | -6/Lower Caves | Learned Extension security intel 23288 | -6/Lower Caves | Learned Research terminal intel 23288 | -6/Lower Caves | Learned Extension garrison access intel 23570 | -6/Lower Caves | Learned 8 Factory zone layouts 23753 | -6/Lower Caves | Encountered a Warlord checkpoint 23869 | -6/Lower Caves | Discovered new exit (range 13) 23872 | -6/Lower Caves | Identified exit to Zion 24163 | -6/Lower Caves | Scrapoid Pod released 06L07-D (x5) 24706 | -6/Lower Caves | Attached CPS modules to G-50 Soldier 24740 | -6/Lower Caves | Lost 3 allies 24781 | -6/Lower Caves | Entered Zion 24781 | -6/Zion | Accompanied by 2 allies 25146 | -6/Zion | Received a hallucinogenic algorithm 25479 | -6/Zion | System corruption cleaned by Quarantine Array 25542 | -6/Zion | Discovered new exit (range 16) 26134 | -6/Zion | Given A8's code to call for help 26144 | -6/Zion | Learned location of Warlord (-4) 26249 | -6/Zion | Learned location of Armory (-4) 26423 | -6/Zion | Build established: Derelict-Mutant 27194 | -6/Zion | Identified exit to Proximity Caves 27199 | -6/Zion | Entered Proximity Caves 27199 | -5/Proximity Caves | Accompanied by 2 allies 27202 | -5/Proximity Caves | Spotter reported a threat 27206 | -5/Proximity Caves | Spotter reported a threat 27286 | -5/Proximity Caves | Attracted the attention of an 0b10 checkpoint 27332 | -5/Proximity Caves | Learned Factory trap positions 28058 | -5/Proximity Caves | Discovered exit to Factory (range 15) 28066 | -5/Proximity Caves | Entered Factory 28066 | -5/Factory | Evolved 2 slots: Utility x2 28068 | -5/Factory | Loaded intel: 111 trap records 28069 | -5/Factory | Loaded intel: 28 terminal locations 28268 | -5/Factory | Discovered new exit (range 7) 28278 | -5/Factory | Identified exit to Upper Caves 28400 | -5/Factory | Found Prototype Launcher 28401 | -5/Factory | Identified Mni. Smartbomb Launcher 28453 | -5/Factory | Discovered exit to Upper Caves (range 5) 28571 | -5/Factory | Identified exit to Extension 28901 | -5/Factory | Cargo convoy interrupted 28908 | -5/Factory | Entered Extension 28935 | -5/Extension | Lost 6 parts (1p2n2u1w) 28983 | -5/Extension | Rescued a captive Derelict 28984 | -5/Extension | Rescued a captive Derelict 29041 | -5/Extension | Rescued a captive Derelict 29049 | -5/Extension | Rescued a captive Derelict 29100 | -5/Extension | Scrapoid reinforcements arrived 29224 | -5/Extension | Loaded intel: 1 recycling unit location 29277 | -5/Extension | P-70 Sage assimilated allied 05E12-D 29332 | -5/Extension | Lost 3 allies 29407 | -5/Extension | Crushed by falling debris 29414 | -5/Extension | Rescued a captive Derelict 29417 | -5/Extension | Rescued A7 29537 | -5/Extension | Attached CPS modules to A7 29543 | -5/Extension | Rescued a captive Derelict 29557 | -5/Extension | Rescued a captive Derelict 29557 | -5/Extension | Rescued a captive Derelict 29578 | -5/Extension | Rescued a captive Derelict 29579 | -5/Extension | Rescued a captive Derelict 29589 | -5/Extension | Rescued a captive Derelict 29589 | -5/Extension | Rescued a captive Derelict 29594 | -5/Extension | Rescued a captive Derelict 29635 | -5/Extension | Discovered new exit (range 10) 29635 | -5/Extension | Discovered new exit (range 6) 29641 | -5/Extension | Identified exit to Cetus 29730 | -5/Extension | Entered Cetus 29730 | -5/Cetus | Accompanied by 18 allies (A7) 29735 | -5/Cetus | Acquired a Cetus Manufacturing Module code from A7 29752 | -5/Cetus | Spotted Cetus Guard 29752 | -5/Cetus | Spotted Cetus Guard 29755 | -5/Cetus | Spotted Cetus Guard 29760 | -5/Cetus | Spotted Cetus Guard 29766 | -5/Cetus | Destroyed Cetus Guard 29772 | -5/Cetus | Allies destroyed Cetus Guard 29779 | -5/Cetus | Allies destroyed Cetus Guard 29807 | -5/Cetus | Lost 3 allies 29820 | -5/Cetus | Escorted A7 to Cetus Mainframe 29824 | -5/Cetus | Build established: Commander-Sprinter 29844 | -5/Cetus | Discovered new exit (range 16) 29894 | -5/Cetus | Spotted Cetus Guard 29894 | -5/Cetus | Spotted Cetus Guard 29909 | -5/Cetus | Spotted Cetus Guard 29909 | -5/Cetus | Spotted Cetus Guard 29928 | -5/Cetus | Allies destroyed Cetus Guard 29930 | -5/Cetus | Allies destroyed Cetus Guard 29938 | -5/Cetus | Allies destroyed Cetus Guard 29949 | -5/Cetus | Discovered new exit (range 16) 29966 | -5/Cetus | Lost 9 allies 30046 | -5/Cetus | Murdered A7 30049 | -5/Cetus | Found Prototype Protection 30049 | -5/Cetus | Identified Med. Regenerative Plating 30054 | -5/Cetus | Identified exit to Archives 30055 | -5/Cetus | Extracted ID and sensor layout for unrecognized location from A7's data core 30093 | -5/Cetus | Met Revision 17 30124 | -5/Cetus | Entered Archives 30124 | -5/Archives | Accompanied by 5 allies 30202 | -5/Archives | Lost 5 allies 30252 | -5/Archives | Discovered new exit (range 16) 30274 | -5/Archives | Discovered new exit (range 16) 30302 | -5/Archives | Discovered new exit (range 14) 30757 | -5/Archives | Build established: Scavenger-Mutant 31102 | -5/Archives | Build established: Scavenger-Sprinter 31520 | -5/Archives | Build established: Scavenger-Mutant 32376 | -5/Archives | Identified exit to Hub_04(d) 32376 | -5/Archives | Entered Hub_04(d) 32601 | -5/Hub_04(d) | Discovered new exit (range 16) 32649 | -5/Hub_04(d) | Network Hub disabled 32662 | -5/Hub_04(d) | System corruption reached 10% 32666 | -5/Hub_04(d) | Network Hub disabled 32676 | -5/Hub_04(d) | First assault squad dispatched 32683 | -5/Hub_04(d) | Network Hub disabled 32688 | -5/Hub_04(d) | Core integrity fell below 50% 32694 | -5/Hub_04(d) | Spotted Lightning 32698 | -5/Hub_04(d) | Spotted Lightning 32702 | -5/Hub_04(d) | Released all parts (9) 32704 | -5/Hub_04(d) | Core integrity fell below 20% 32718 | -5/Hub_04(d) | Spotted Lightning 32720 | -5/Hub_04(d) | Destroyed by C-35 Carver with Carbide Saw Last Messages --------------- 32700_ Wall collapses. 32701_ Penetrated by EMDS Slug. 32701_ Field Propulsion Drive destroyed. 32701_ Slug penetrates Wall. 32701_ Penetrated by Slug. 32702_ Released Cld. Nuclear Pulse Thruster. 32702_ Released Adv. Signal Interpreter. 32702_ Released Shock Maul. 32702_ Released Imp. Hacking Suite. 32702_ Released Cld. Nuclear Pulse Thruster. 32702_ Released Imp. Hacking Suite. 32702_ Released Hvy. Shock Bomb Launcher. 32702_ Released Adv. Hacking Suite. 32703_ Wall collapses. 32703_ EMDS Slug penetrates Wall. 32703_ Slug penetrates Wall. 32704_ Administrator 6a reports 0b10 security level has risen to 3. 32714_ Slammed into G-50 Soldier. 32717_ System corrupted: Matter fused (-6). Map ----- +----------------------------------------------------+ | ??? ???#* #" # = " " # | | ???? ???????# # ## " "######## | | ????????????????# ###########" "###########+# | | ?????? ??????# #########??# | | ??????"""""""???# # #??# | | ????? """"""##### # ""G"" #??# ########+ | | ?????""""" # # " " #### #???# | | ????? / / + + h #???# | | ?????????# # # * ####" ### #???# | | ?????????########### ############"T### ##??# | | ????????########### # ##### #??# | | ######### "" # """ """ + "" #??# ! | | # "T + T" ##### T" #??# | | """ # #####/## # """ """ #???# #??# | | # ## ###### #???######??# | | """ # ## #????# """ """ #??############## | | + ## #????# #??# | | """ # ## " #????# #??# | | # ## #????#/#########??# """" """" " | | """ # ## "" #????# #??????????# """" """" " | | # ## #????# #??????????# """" """" " | | ######### """##"##????# #??????????# """" """" " | | ????????# #?????#c#?????????## | | ????????# #??####/##??#######" | | ??####### =%! #??# c#??# ##+#######+### | | ??#" %! #??#h"""@#??# " " ## ##### #? | | ?##" #"""]"""####??# #??# " " # #? | | ?# " # *=/ ""###### """h#??# " " #^ #? | | ?# " + = " ##i #??# + #? | | ?# " "# " "# """ #??# # ###? | | ?# " ! " "# #??######## #??? | | ! " ";###;##????????# #??? | | ! " ; ???? #??? | | !""" ; ????< #??? | | !" " ###????? ##### #??? | | /="""###" #????????????############??? | | /%/" #??# #??????????????????????????? | | !//"""#??? ??????????????????????????? | | " "% ???????????????????????????????? | | " " ??H???????????????????????????? | | " """"""??????????????????????????????? | | " " ###??????????????????????????????? | | # " " #????????????????????????????????? | | # " " ?????????????????????????????????? | | " "???????????????????????????????????? | | ??"""""""""??????????????????????????????????????? | | ???? ????????????????????????????????????????? | | ?????????????????????????????????????????????????? | | ?????????????????????????????????????????????????? | | ?????????????????????????????????????????????????? | +----------------------------------------------------+ Best States ------------- Heat Dissipation 71 Energy Generation 35 Energy Capacity 1100 Matter Stores 300 Matter Capacity 300 Sight Range 22 Robot Scan Range 16 Terrain Scan Density 210 Jamming Range 14 Additional Mass Support 16 Armor Coverage 800 Resistance: KI 10 Resistance: EM 20 Weapon Shielding 90 Evasion (%) 65 Melee Accuracy 8 Armor Integrity Analysis 30 Recoil Reduction 2 Offensive Hacking 36 Defensive Hacking 14 Authchip Count 2 Item Schematics ----------------- Adv. Signal Interpreter | -6/Zion | Archive Imp. Recalibrator | -6/Zion | Archive Imp. System Restoration Module | -6/Zion | Archive Imp. Dynamic Insulation System | -6/Zion | Archive Plasma Rifle | -6/Zion | Archive Adv. Trap Extractor | -6/Zion | Archive Hpw. Shock Rifle | -6/Zion | Archive Adv. Focal Shield | -6/Zion | Archive Impulse Thruster | -6/Zion | Archive IFF Parser | -6/Zion | Archive Arm. Medium Treads | -6/Zion | Archive Imp. Hardlight Generator | -6/Zion | Archive Imp. Corruption Screen | -6/Zion | Archive Arm. Leg | -6/Zion | Archive Tiamat Missile Launcher | -6/Zion | Archive Adv. Transmission Jammer | -5/Hub_04(d) | Hacked Robot Schematics ------------------ H-66 Slayer | -6/Zion | Archive T-07 Excavator | -6/Zion | Archive B-48 Gladiator | -6/Zion | Archive Fabricated ------------ Nothing Repaired ---------- Nothing Studied --------- Lgt. Fission Core | -5/Factory | Hacked Alien Tech Used ----------------- None Achievements -------------- None Challenges ------------ None Game ------ Seed OvertunedActuatorSystem Manual? 0 Play Time 03:59:49 Cumulative 788.3 hours Start 2026.07.30 @ 13:08:33 End 2026.07.30 @ 17:33:17 Sessions 3 Manual Loads 0 Difficulty Rogue Special Mode None Game No. 292 Rogue 288 Adventurer 4 Explorer 0 Win Type - Total 21 Types 9/2/6/0/0/0/2/2/0/0 Lore% 89 Gallery% 77 Achievement% 61 Wizard Run 0 Options --------- Layout 1 ASCII 0 Keyboard 0 Movement Arrows Keybinds 0 Fullscreen 1 Font 40/SmallcapsGlow Map View 50x40 Zoom Use 0% Tactical HUD 1 Map Filters NONE Filters NONE Steam 1 RUN: bac6f3aa-a9da-4cef-9bc1-4f0f45fc3fa9